[Event "*** Titled Tuesday Blitz"]
[Site "Chess.com"]
[Date "2019.05.07"]
[Round "10"]
[White "el-reptiliano"]
[Black "gemarin"]
[Result "0-1"]
[WhiteElo "2182"]
[BlackElo "2102"]
[TimeControl "180+2"]
[EndTime "15:23:27 PDT"]
[Termination "gemarin won by resignation"]

1. Nf3 {[%clk 0:02:58.5]} 1... d5 {[%clk 0:03:00.5]} 2. e3 {[%clk 0:02:57.8]}
2... c6 {[%clk 0:03:01.2]} 3. c4 {[%clk 0:02:57.1]} 3... Nf6 {[%clk 0:03:01.1]}
4. b3 {[%clk 0:02:56.5]} 4... Bf5 {[%clk 0:03:00]} 5. Bb2 {[%clk 0:02:42.4]}
5... e6 {[%clk 0:03:00]} 6. Nc3 {[%clk 0:02:39.5]} 6... Nbd7 {[%clk 0:02:59.9]}
7. h3 {[%clk 0:02:39.7]} 7... h6 {[%clk 0:02:57.2]} 8. g4 {[%clk 0:02:32.7]}
8... Bg6 {[%clk 0:02:54.9]} 9. Rg1 {[%clk 0:02:24.2]} 9... Bd6 {[%clk
0:02:54.2]} 10. h4 {[%clk 0:02:23.4]} 10... Ne5 {[%clk 0:02:45.7]} 11. Nxe5
{[%clk 0:02:11.8]} 11... Bxe5 {[%clk 0:02:46]} 12. f4 {[%clk 0:02:11.2]} 12...
Bxc3 {[%clk 0:02:33.5]} 13. Bxc3 {[%clk 0:02:13.1]} 13... Ne4 {[%clk 0:02:34.2]}
14. g5 {[%clk 0:01:49.6]} 14... Nxc3 {[%clk 0:02:32.9]} 15. dxc3 {[%clk
0:01:49.6]} 15... hxg5 {[%clk 0:02:32.7]} 16. hxg5 {[%clk 0:01:51.5]} 16... Qa5
{[%clk 0:02:31.1]} 17. Qd4 {[%clk 0:01:49.9]} 17... O-O-O {[%clk 0:02:31.2]} 18.
c5 {[%clk 0:01:47.7]} 18... Be4 {[%clk 0:02:24.4]} 19. a4 {[%clk 0:01:40.4]}
19... Rh2 {[%clk 0:02:21.8]} 20. b4 {[%clk 0:01:39.4]} 20... Qc7 {[%clk
0:02:20.7]} 21. Qxg7 {[%clk 0:01:39.7]} 21... a5 {[%clk 0:02:10.2]} 22. Be2
{[%clk 0:01:34.7]} 22... axb4 {[%clk 0:02:09.6]} 23. cxb4 {[%clk 0:01:36.6]}
23... d4 {[%clk 0:02:10.1]} 24. Rf1 {[%clk 0:00:41.2]} 24... dxe3 {[%clk
0:02:02.1]} 25. Rd1 {[%clk 0:00:30.9]} 25... Rxd1+ {[%clk 0:01:59.6]} 26. Bxd1
{[%clk 0:00:31.1]} 26... Qd7 {[%clk 0:01:47.3]} 27. Qf8+ {[%clk 0:00:28.2]}
27... Kc7 {[%clk 0:01:47.3]} 28. Qd6+ {[%clk 0:00:30.1]} 28... Qxd6 {[%clk
0:01:48.2]} 29. cxd6+ {[%clk 0:00:32]} 29... Kxd6 {[%clk 0:01:49]} 30. b5 {[%clk
0:00:30.7]} 30... Bd3 {[%clk 0:01:48.7]} 31. Rg1 {[%clk 0:00:21.4]} 31... cxb5
{[%clk 0:01:48.8]} 32. axb5 {[%clk 0:00:22.4]} 32... Bxb5 {[%clk 0:01:49.2]} 33.
Bb3 {[%clk 0:00:22.6]} 33... Rb2 {[%clk 0:01:44.8]} 34. Bd1 {[%clk 0:00:23]}
34... e2 {[%clk 0:01:40.9]} 35. Bxe2 {[%clk 0:00:03.7]} 35... Rxe2+ {[%clk
0:01:39.9]} 36. Kd1 {[%clk 0:00:05.1]} 36... Rf2 {[%clk 0:01:40.7]} 37. Rg4
{[%clk 0:00:05.5]} 37... Be2+ {[%clk 0:01:39.7]} 0-1

[Event "*** Titled Tuesday Blitz"]
[Site "Chess.com"]
[Date "2019.05.07"]
[Round "10"]
[White "Manukyan_Artak"]
[Black "Roenko_Artur"]
[Result "0-1"]
[WhiteElo "2395"]
[BlackElo "2235"]
[TimeControl "180+2"]
[EndTime "15:23:40 PDT"]
[Termination "Roenko_Artur won by resignation"]

1. e4 {[%clk 0:03:01.9]} 1... e6 {[%clk 0:03:00.6]} 2. d4 {[%clk 0:03:02.9]}
2... d5 {[%clk 0:03:01.9]} 3. e5 {[%clk 0:03:04.3]} 3... c5 {[%clk 0:03:02.6]}
4. c3 {[%clk 0:03:05.4]} 4... Qb6 {[%clk 0:03:04.1]} 5. Nf3 {[%clk 0:03:06.6]}
5... Nc6 {[%clk 0:03:04.4]} 6. a3 {[%clk 0:03:07.7]} 6... f6 {[%clk 0:03:05.5]}
7. exf6 {[%clk 0:03:05.5]} 7... Nxf6 {[%clk 0:03:05.1]} 8. b4 {[%clk 0:03:06]}
8... cxd4 {[%clk 0:03:04.4]} 9. cxd4 {[%clk 0:03:06.7]} 9... Bd6 {[%clk
0:03:04.2]} 10. Nc3 {[%clk 0:03:07.7]} 10... Bd7 {[%clk 0:03:04.5]} 11. Na4
{[%clk 0:03:08.4]} 11... Qc7 {[%clk 0:02:57.7]} 12. Bb2 {[%clk 0:03:08.3]} 12...
O-O {[%clk 0:02:47.2]} 13. Rc1 {[%clk 0:03:08.1]} 13... Rae8 {[%clk 0:02:44.1]}
14. Be2 {[%clk 0:03:04.1]} 14... Bf4 {[%clk 0:02:40]} 15. Rc3 {[%clk 0:02:49]}
15... Qd6 {[%clk 0:02:36.9]} 16. Nc5 {[%clk 0:02:46.7]} 16... b6 {[%clk
0:02:29.2]} 17. Nxd7 {[%clk 0:02:44.2]} 17... Nxd7 {[%clk 0:02:24.1]} 18. O-O
{[%clk 0:02:39.1]} 18... Nf6 {[%clk 0:02:22.7]} 19. Bb5 {[%clk 0:02:38.7]} 19...
Rc8 {[%clk 0:02:20.2]} 20. Qa4 {[%clk 0:02:28.6]} 20... Ne7 {[%clk 0:02:00.6]}
21. Ne5 {[%clk 0:02:16.7]} 21... Rxc3 {[%clk 0:01:48.8]} 22. Bxc3 {[%clk
0:02:18.6]} 22... Ne4 {[%clk 0:01:49.7]} 23. Bb2 {[%clk 0:02:07.2]} 23... Ng6
{[%clk 0:01:41.2]} 24. Nxg6 {[%clk 0:01:47]} 24... Bxh2+ {[%clk 0:01:40.8]} 25.
Kh1 {[%clk 0:01:47.7]} 25... hxg6 {[%clk 0:01:42]} 26. Qc2 {[%clk 0:01:34.9]}
26... Rf5 {[%clk 0:01:25.2]} 27. g3 {[%clk 0:00:58.7]} 27... Bxg3 {[%clk
0:01:04.2]} 28. fxg3 {[%clk 0:00:41.8]} 28... Rh5+ {[%clk 0:01:02.7]} 29. Kg1
{[%clk 0:00:37.4]} 29... Qxg3+ {[%clk 0:00:56.2]} 30. Qg2 {[%clk 0:00:38]} 30...
Qe3+ {[%clk 0:00:56.6]} 31. Rf2 {[%clk 0:00:38.9]} 31... Nxf2 {[%clk 0:00:53]}
32. Qxf2 {[%clk 0:00:25.5]} 32... Rh1+ {[%clk 0:00:51.3]} 0-1

[Event "*** Titled Tuesday Blitz"]
[Site "Chess.com"]
[Date "2019.05.07"]
[Round "10"]
[White "nitpicker"]
[Black "JonasHilwerda"]
[Result "0-1"]
[WhiteElo "2231"]
[BlackElo "2248"]
[TimeControl "180+2"]
[EndTime "15:23:48 PDT"]
[Termination "JonasHilwerda won on time"]

1. d4 {[%clk 0:03:01.9]} 1... Nf6 {[%clk 0:02:56.5]} 2. c4 {[%clk 0:03:02.5]}
2... e5 {[%clk 0:02:57.1]} 3. dxe5 {[%clk 0:03:02.2]} 3... Ne4 {[%clk
0:02:58.7]} 4. a3 {[%clk 0:02:56.6]} 4... Bc5 {[%clk 0:02:58]} 5. e3 {[%clk
0:02:54.5]} 5... Nc6 {[%clk 0:02:59.6]} 6. Bd3 {[%clk 0:02:48]} 6... Ng5 {[%clk
0:02:56.4]} 7. Be2 {[%clk 0:02:34.1]} 7... O-O {[%clk 0:02:51.4]} 8. Nc3 {[%clk
0:02:30.5]} 8... f6 {[%clk 0:02:44.3]} 9. Qd5+ {[%clk 0:02:12.7]} 9... Ne6
{[%clk 0:02:44.9]} 10. exf6 {[%clk 0:01:53.3]} 10... Qxf6 {[%clk 0:02:46.8]} 11.
Nf3 {[%clk 0:01:51.8]} 11... Kh8 {[%clk 0:02:48.3]} 12. Ne4 {[%clk 0:01:43.4]}
12... Qe7 {[%clk 0:02:42.6]} 13. b4 {[%clk 0:01:37.9]} 13... Bd6 {[%clk
0:01:48.7]} 14. c5 {[%clk 0:01:24.8]} 14... Bf4 {[%clk 0:01:36.9]} 15. exf4
{[%clk 0:01:14.5]} 15... Nxf4 {[%clk 0:01:38.8]} 16. Bxf4 {[%clk 0:01:08.4]}
16... Rxf4 {[%clk 0:01:40.7]} 17. Ng3 {[%clk 0:01:03.9]} 17... d6 {[%clk
0:01:38.2]} 18. cxd6 {[%clk 0:01:02.2]} 18... cxd6 {[%clk 0:01:39.1]} 19. O-O
{[%clk 0:00:57.1]} 19... Be6 {[%clk 0:01:40]} 20. Qd2 {[%clk 0:00:50.6]} 20...
Raf8 {[%clk 0:01:41.4]} 21. Rad1 {[%clk 0:00:47.1]} 21... d5 {[%clk 0:01:42.1]}
22. Rfe1 {[%clk 0:00:48.4]} 22... Qc7 {[%clk 0:01:42.5]} 23. Qe3 {[%clk
0:00:40]} 23... Bg4 {[%clk 0:01:43]} 24. h3 {[%clk 0:00:29.7]} 24... Be6 {[%clk
0:01:43.8]} 25. Nd4 {[%clk 0:00:27.2]} 25... Nxd4 {[%clk 0:01:44.4]} 26. Rxd4
{[%clk 0:00:27.2]} 26... R4f6 {[%clk 0:01:43.7]} 27. Bf3 {[%clk 0:00:25]} 27...
Bxh3 {[%clk 0:01:38.7]} 28. Bxd5 {[%clk 0:00:23.1]} 28... Bd7 {[%clk 0:01:34.5]}
29. Qe7 {[%clk 0:00:20.6]} 29... Rxf2 {[%clk 0:01:31.2]} 30. Ne4 {[%clk
0:00:17.1]} 30... R2f4 {[%clk 0:01:18.8]} 31. Ng5 {[%clk 0:00:15.8]} 31... Qb6
{[%clk 0:01:12.3]} 32. Kh2 {[%clk 0:00:04.3]} 32... Qh6+ {[%clk 0:01:10.2]} 33.
Nh3 {[%clk 0:00:02.9]} 33... Bxh3 {[%clk 0:01:09.7]} 34. gxh3 {[%clk 0:00:02.5]}
34... Rf2+ {[%clk 0:01:10.9]} 35. Bg2 {[%clk 0:00:02.5]} 35... Qg6 {[%clk
0:01:06]} 0-1

[Event "*** Titled Tuesday Blitz"]
[Site "Chess.com"]
[Date "2019.05.07"]
[Round "10"]
[White "adriangschnitzer"]
[Black "Casper_Schoppen"]
[Result "0-1"]
[WhiteElo "2441"]
[BlackElo "2657"]
[TimeControl "180+2"]
[EndTime "15:24:24 PDT"]
[Termination "Casper_Schoppen won by resignation"]

1. e4 {[%clk 0:03:01.9]} 1... c5 {[%clk 0:02:57.6]} 2. Nf3 {[%clk 0:03:01.1]}
2... Nc6 {[%clk 0:02:58.7]} 3. d4 {[%clk 0:03:01.3]} 3... cxd4 {[%clk
0:03:00.3]} 4. Nxd4 {[%clk 0:03:02.7]} 4... Nf6 {[%clk 0:03:01.4]} 5. Nc3 {[%clk
0:03:03.5]} 5... e5 {[%clk 0:03:02.9]} 6. Ndb5 {[%clk 0:03:04.7]} 6... d6 {[%clk
0:03:04.4]} 7. Bg5 {[%clk 0:03:05]} 7... a6 {[%clk 0:03:05.9]} 8. Na3 {[%clk
0:03:05.8]} 8... b5 {[%clk 0:03:07.5]} 9. Nd5 {[%clk 0:03:04.8]} 9... Be7 {[%clk
0:03:06]} 10. Bxf6 {[%clk 0:03:06]} 10... Bxf6 {[%clk 0:03:07.6]} 11. c3 {[%clk
0:03:04.8]} 11... Bg5 {[%clk 0:03:09.1]} 12. Nc2 {[%clk 0:03:05.2]} 12... Rb8
{[%clk 0:03:09.8]} 13. g3 {[%clk 0:03:00.3]} 13... O-O {[%clk 0:03:06.7]} 14.
Bg2 {[%clk 0:03:01.4]} 14... Ne7 {[%clk 0:03:01.3]} 15. Nce3 {[%clk 0:02:58.8]}
15... Be6 {[%clk 0:02:59.7]} 16. O-O {[%clk 0:02:55.2]} 16... Nxd5 {[%clk
0:02:49.2]} 17. Nxd5 {[%clk 0:02:53.8]} 17... Bh6 {[%clk 0:02:48.2]} 18. Qh5
{[%clk 0:02:46.2]} 18... Bxd5 {[%clk 0:02:46.7]} 19. exd5 {[%clk 0:02:48]} 19...
f5 {[%clk 0:02:45.5]} 20. f4 {[%clk 0:02:40.1]} 20... exf4 {[%clk 0:02:42.2]}
21. gxf4 {[%clk 0:02:42]} 21... Qb6+ {[%clk 0:02:23.3]} 22. Kh1 {[%clk
0:02:42.4]} 22... Rbe8 {[%clk 0:02:24.5]} 23. Rae1 {[%clk 0:02:28.4]} 23... Rxe1
{[%clk 0:02:17.2]} 24. Rxe1 {[%clk 0:02:30.3]} 24... Qf2 {[%clk 0:02:11.7]} 25.
Qe2 {[%clk 0:01:19]} 25... Qxe2 {[%clk 0:01:48.6]} 26. Rxe2 {[%clk 0:01:20.9]}
26... Bxf4 {[%clk 0:01:49.9]} 27. Re7 {[%clk 0:01:21.4]} 27... Bc1 {[%clk
0:01:45.7]} 28. b3 {[%clk 0:01:15.9]} 28... Rc8 {[%clk 0:01:45.8]} 29. Ra7
{[%clk 0:00:57]} 29... Rxc3 {[%clk 0:01:40.8]} 30. Rxa6 {[%clk 0:00:55.8]} 30...
Bf4 {[%clk 0:01:41.8]} 31. Bf1 {[%clk 0:00:44.5]} 31... b4 {[%clk 0:01:33.3]}
32. Bb5 {[%clk 0:00:44]} 32... g6 {[%clk 0:01:19.4]} 33. Bd7 {[%clk 0:00:32.6]}
33... Rh3 {[%clk 0:01:16.8]} 34. Ra4 {[%clk 0:00:22]} 34... Rxh2+ {[%clk
0:01:12.1]} 35. Kg1 {[%clk 0:00:23.3]} 35... Rd2 {[%clk 0:01:07.9]} 36. Rxb4
{[%clk 0:00:22.2]} 36... Be3+ {[%clk 0:01:08.7]} 37. Kf1 {[%clk 0:00:23]} 37...
Rxa2 {[%clk 0:01:09.6]} 38. Be6+ {[%clk 0:00:21.5]} 38... Kg7 {[%clk 0:01:10.4]}
39. Rb7+ {[%clk 0:00:19.6]} 39... Kh6 {[%clk 0:01:08.1]} 40. Bg8 {[%clk
0:00:20.5]} 40... f4 {[%clk 0:01:01.7]} 41. Rxh7+ {[%clk 0:00:21.2]} 41... Kg5
{[%clk 0:01:03.2]} 42. Rf7 {[%clk 0:00:22.5]} 42... Kg4 {[%clk 0:01:02.7]} 43.
Bh7 {[%clk 0:00:19.4]} 43... f3 {[%clk 0:01:01.8]} 0-1

[Event "*** Titled Tuesday Blitz"]
[Site "Chess.com"]
[Date "2019.05.07"]
[Round "10"]
[White "jefferyx"]
[Black "Hikaru"]
[Result "0-1"]
[WhiteElo "2915"]
[BlackElo "3195"]
[TimeControl "180+2"]
[EndTime "15:24:25 PDT"]
[Termination "Hikaru won by resignation"]

1. d4 {[%clk 0:03:01.9]} 1... Nf6 {[%clk 0:02:59.2]} 2. c4 {[%clk 0:03:02.3]}
2... e6 {[%clk 0:03:00]} 3. Nc3 {[%clk 0:03:03.1]} 3... Bb4 {[%clk 0:03:00.7]}
4. Nf3 {[%clk 0:03:04.7]} 4... O-O {[%clk 0:03:00.2]} 5. Bg5 {[%clk 0:03:06.4]}
5... d5 {[%clk 0:03:00.9]} 6. e3 {[%clk 0:03:05.3]} 6... h6 {[%clk 0:02:58.1]}
7. Bh4 {[%clk 0:03:06.5]} 7... c5 {[%clk 0:02:35.6]} 8. a3 {[%clk 0:02:59.3]}
8... Bxc3+ {[%clk 0:02:34.4]} 9. bxc3 {[%clk 0:03:01.2]} 9... Nbd7 {[%clk
0:02:24.4]} 10. cxd5 {[%clk 0:03:00.6]} 10... exd5 {[%clk 0:02:25.4]} 11. Be2
{[%clk 0:02:26.6]} 11... Qa5 {[%clk 0:02:24.7]} 12. O-O {[%clk 0:02:27.6]} 12...
Ne4 {[%clk 0:02:25.3]} 13. Bd3 {[%clk 0:02:18]} 13... Nxc3 {[%clk 0:01:55.5]}
14. Qd2 {[%clk 0:02:19]} 14... c4 {[%clk 0:01:55.8]} 15. Bc2 {[%clk 0:02:04.4]}
15... Re8 {[%clk 0:01:49]} 16. Rfc1 {[%clk 0:01:59.1]} 16... b6 {[%clk
0:01:47.7]} 17. Bf5 {[%clk 0:01:30.3]} 17... Ne4 {[%clk 0:01:41.1]} 18. Qxa5
{[%clk 0:01:32.2]} 18... bxa5 {[%clk 0:01:41.4]} 19. Bxe4 {[%clk 0:01:22]} 19...
Rxe4 {[%clk 0:01:38.6]} 20. Rab1 {[%clk 0:01:23.5]} 20... Ba6 {[%clk 0:01:33.2]}
21. Bg3 {[%clk 0:01:22.3]} 21... Rc8 {[%clk 0:01:29.2]} 22. Ne5 {[%clk
0:01:17.8]} 22... Nxe5 {[%clk 0:01:29.3]} 23. Bxe5 {[%clk 0:01:16.6]} 23... f6
{[%clk 0:01:30]} 24. Bd6 {[%clk 0:01:16.6]} 24... Ree8 {[%clk 0:01:19.9]} 25.
Bc5 {[%clk 0:01:17.8]} 25... Rb8 {[%clk 0:01:19]} 26. Bxa7 {[%clk 0:01:14.2]}
26... Rb3 {[%clk 0:01:19.4]} 27. a4 {[%clk 0:01:08.6]} 27... Re7 {[%clk
0:01:13.2]} 28. Bc5 {[%clk 0:01:04.9]} 28... Reb7 {[%clk 0:01:13.8]} 29. Ra1
{[%clk 0:01:06.8]} 29... c3 {[%clk 0:01:09.7]} 30. f3 {[%clk 0:00:45.2]} 30...
Bd3 {[%clk 0:01:08.7]} 31. Kf2 {[%clk 0:00:47.1]} 31... Rb2+ {[%clk 0:00:59.4]}
32. Kg3 {[%clk 0:00:48.5]} 32... c2 {[%clk 0:01:00.3]} 33. Ba3 {[%clk
0:00:22.9]} 33... Rb1 {[%clk 0:00:53.6]} 34. Ra2 {[%clk 0:00:17.5]} 34... Rxc1
{[%clk 0:00:51.9]} 35. Bxc1 {[%clk 0:00:19.4]} 35... Rb1 {[%clk 0:00:53.1]} 36.
Ba3 {[%clk 0:00:21]} 36... g5 {[%clk 0:00:43]} 37. h4 {[%clk 0:00:14.1]} 37...
Kf7 {[%clk 0:00:40.1]} 38. hxg5 {[%clk 0:00:14.1]} 38... hxg5 {[%clk 0:00:40.5]}
0-1

[Event "*** Titled Tuesday Blitz"]
[Site "Chess.com"]
[Date "2019.05.07"]
[Round "10"]
[White "tteshan"]
[Black "agus_k"]
[Result "0-1"]
[WhiteElo "2270"]
[BlackElo "2617"]
[TimeControl "180+2"]
[EndTime "15:24:26 PDT"]
[Termination "agus_k won by checkmate"]

1. d4 {[%clk 0:03:01.9]} 1... Nf6 {[%clk 0:02:59.5]} 2. c4 {[%clk 0:03:03.1]}
2... g6 {[%clk 0:02:59.3]} 3. Nc3 {[%clk 0:03:03.9]} 3... Bg7 {[%clk 0:03:00.4]}
4. e4 {[%clk 0:03:04.6]} 4... d6 {[%clk 0:02:56.8]} 5. Be2 {[%clk 0:03:05.6]}
5... O-O {[%clk 0:02:55]} 6. Bg5 {[%clk 0:03:06.3]} 6... c5 {[%clk 0:02:54.1]}
7. d5 {[%clk 0:03:07]} 7... a6 {[%clk 0:02:54]} 8. Qd2 {[%clk 0:03:08.1]} 8...
Re8 {[%clk 0:02:53.6]} 9. h4 {[%clk 0:03:06.5]} 9... h5 {[%clk 0:02:53.5]} 10.
f3 {[%clk 0:03:05.8]} 10... Nbd7 {[%clk 0:02:52.7]} 11. Nh3 {[%clk 0:03:02.1]}
11... Qa5 {[%clk 0:02:51.6]} 12. Nf2 {[%clk 0:03:00.3]} 12... Rb8 {[%clk
0:02:46.6]} 13. g4 {[%clk 0:02:44.2]} 13... b5 {[%clk 0:02:46.2]} 14. cxb5
{[%clk 0:02:43.8]} 14... axb5 {[%clk 0:02:46.9]} 15. gxh5 {[%clk 0:02:42.2]}
15... Nxh5 {[%clk 0:02:43.6]} 16. Rg1 {[%clk 0:02:38.2]} 16... b4 {[%clk
0:02:32.9]} 17. Ncd1 {[%clk 0:02:37.3]} 17... Ba6 {[%clk 0:02:33.4]} 18. Bxa6
{[%clk 0:02:32]} 18... Qxa6 {[%clk 0:02:34.2]} 19. Ne3 {[%clk 0:02:14.7]} 19...
Ne5 {[%clk 0:02:33.8]} 20. Qe2 {[%clk 0:02:06.8]} 20... c4 {[%clk 0:02:34.5]}
21. f4 {[%clk 0:01:58.1]} 21... Nd3+ {[%clk 0:02:35.4]} 22. Nxd3 {[%clk
0:01:58.7]} 22... cxd3 {[%clk 0:02:37.3]} 23. Qd2 {[%clk 0:01:58]} 23... b3
{[%clk 0:02:35.8]} 24. a3 {[%clk 0:01:49.5]} 24... Rbc8 {[%clk 0:02:34.9]} 25.
Kf2 {[%clk 0:01:39]} 25... Rc5 {[%clk 0:02:30.2]} 26. Rgc1 {[%clk 0:01:39]}
26... Rxc1 {[%clk 0:02:22.4]} 27. Rxc1 {[%clk 0:01:38.9]} 27... f6 {[%clk
0:02:24]} 28. Rc3 {[%clk 0:00:48.7]} 28... fxg5 {[%clk 0:02:24]} 29. Rxb3 {[%clk
0:00:48.6]} 29... Rf8 {[%clk 0:02:18.3]} 30. f5 {[%clk 0:00:47.7]} 30... Nf4
{[%clk 0:02:13.9]} 31. hxg5 {[%clk 0:00:41.9]} 31... Bd4 {[%clk 0:02:08.5]} 32.
Kf3 {[%clk 0:00:39.3]} 32... Be5 {[%clk 0:02:02.8]} 33. Ng4 {[%clk 0:00:29.6]}
33... Ne2 {[%clk 0:01:53.6]} 34. Rxd3 {[%clk 0:00:26.1]} 34... Nc1 {[%clk
0:01:43.6]} 35. Nh6+ {[%clk 0:00:26.3]} 35... Kg7 {[%clk 0:01:42.8]} 36. Re3
{[%clk 0:00:24.8]} 36... Qc4 {[%clk 0:01:34.7]} 37. Qg2 {[%clk 0:00:17.7]} 37...
gxf5 {[%clk 0:01:27.6]} 38. Qh3 {[%clk 0:00:10.4]} 38... fxe4+ {[%clk
0:01:25.6]} 39. Kg4 {[%clk 0:00:10.5]} 39... Qc8+ {[%clk 0:01:21.3]} 40. Kh5
{[%clk 0:00:07.3]} 40... Qe8+ {[%clk 0:01:19]} 41. Kh4 {[%clk 0:00:07.2]} 41...
Rf4+ {[%clk 0:01:20]} 42. Ng4 {[%clk 0:00:08.4]} 42... Qh8+ {[%clk 0:01:19.8]}
43. Kg3 {[%clk 0:00:09.8]} 43... Rf3+ {[%clk 0:01:20.5]} 44. Kg2 {[%clk
0:00:09.4]} 44... Qxh3+ {[%clk 0:01:21.6]} 45. Kg1 {[%clk 0:00:10.5]} 45... Rf1#
{[%clk 0:01:22.7]} 0-1

[Event "*** Titled Tuesday Blitz"]
[Site "Chess.com"]
[Date "2019.05.07"]
[Round "10"]
[White "kikoveiga"]
[Black "Heineccius"]
[Result "1-0"]
[WhiteElo "2283"]
[BlackElo "2444"]
[TimeControl "180+2"]
[EndTime "15:24:38 PDT"]
[Termination "kikoveiga won on time"]

1. e4 {[%clk 0:03:01.9]} 1... c5 {[%clk 0:03:00.7]} 2. Nf3 {[%clk 0:03:01.7]}
2... e6 {[%clk 0:03:01.1]} 3. d4 {[%clk 0:03:02.2]} 3... cxd4 {[%clk 0:03:02.3]}
4. Nxd4 {[%clk 0:03:00.5]} 4... a6 {[%clk 0:03:03.6]} 5. Bd3 {[%clk 0:02:55.5]}
5... Bc5 {[%clk 0:03:03.6]} 6. Nb3 {[%clk 0:02:55.7]} 6... Be7 {[%clk
0:03:04.5]} 7. Qg4 {[%clk 0:02:52.9]} 7... g6 {[%clk 0:03:04.5]} 8. Qe2 {[%clk
0:02:50.5]} 8... d6 {[%clk 0:03:03.5]} 9. O-O {[%clk 0:02:49.1]} 9... Nd7 {[%clk
0:02:59]} 10. Nc3 {[%clk 0:02:47.6]} 10... Qc7 {[%clk 0:02:58.1]} 11. a4 {[%clk
0:02:44.2]} 11... b6 {[%clk 0:02:57.6]} 12. Be3 {[%clk 0:02:40.7]} 12... Bb7
{[%clk 0:02:50.6]} 13. f3 {[%clk 0:02:32.6]} 13... Ngf6 {[%clk 0:02:49.8]} 14.
Bh6 {[%clk 0:02:27.8]} 14... Bf8 {[%clk 0:02:42.4]} 15. Qd2 {[%clk 0:02:24.3]}
15... Ne5 {[%clk 0:02:28.6]} 16. Rfe1 {[%clk 0:02:20.3]} 16... Bxh6 {[%clk
0:02:22]} 17. Qxh6 {[%clk 0:02:22.2]} 17... Qe7 {[%clk 0:02:14.5]} 18. Be2
{[%clk 0:02:18.1]} 18... Qf8 {[%clk 0:02:10.4]} 19. Qe3 {[%clk 0:02:16.6]} 19...
Ned7 {[%clk 0:02:07.9]} 20. a5 {[%clk 0:02:13.2]} 20... b5 {[%clk 0:02:07.5]}
21. Rad1 {[%clk 0:02:12.8]} 21... Qe7 {[%clk 0:01:56.6]} 22. Qd4 {[%clk
0:02:09.1]} 22... Nc5 {[%clk 0:01:35.6]} 23. Qxd6 {[%clk 0:02:09.1]} 23... Qxd6
{[%clk 0:01:35.1]} 24. Rxd6 {[%clk 0:02:06]} 24... Nxb3 {[%clk 0:01:36.3]} 25.
cxb3 {[%clk 0:02:01.9]} 25... Ke7 {[%clk 0:01:35.8]} 26. e5 {[%clk 0:02:01.5]}
26... Nd5 {[%clk 0:01:32]} 27. Rc1 {[%clk 0:01:55.7]} 27... Nf4 {[%clk
0:01:08.7]} 28. Bf1 {[%clk 0:01:52.2]} 28... Rhc8 {[%clk 0:01:01.4]} 29. Rb6
{[%clk 0:01:51.5]} 29... Bc6 {[%clk 0:00:42.4]} 30. g3 {[%clk 0:01:39.4]} 30...
Nh5 {[%clk 0:00:43.2]} 31. f4 {[%clk 0:01:37.1]} 31... Kd7 {[%clk 0:00:18.6]}
32. Na2 {[%clk 0:01:31.9]} 32... Bd5 {[%clk 0:00:16.1]} 33. Rd6+ {[%clk
0:01:27.6]} 33... Ke7 {[%clk 0:00:16.8]} 34. Rxc8 {[%clk 0:01:22.3]} 34... Rxc8
{[%clk 0:00:17.7]} 35. Rxa6 {[%clk 0:01:24.2]} 35... Rc2 {[%clk 0:00:17.5]} 36.
Nb4 {[%clk 0:01:19.2]} 36... Rxb2 {[%clk 0:00:16.7]} 37. Ra7+ {[%clk 0:01:19]}
37... Kf8 {[%clk 0:00:14.7]} 38. Nxd5 {[%clk 0:01:16.7]} 38... exd5 {[%clk
0:00:16.6]} 39. a6 {[%clk 0:01:17.6]} 39... Ra2 {[%clk 0:00:16.8]} 40. Bxb5
{[%clk 0:01:12.2]} 40... g5 {[%clk 0:00:13.4]} 41. Rb7 {[%clk 0:01:07.5]} 41...
gxf4 {[%clk 0:00:13.1]} 42. g4 {[%clk 0:01:07]} 42... Ng7 {[%clk 0:00:08.6]} 43.
a7 {[%clk 0:01:06.8]} 1-0

[Event "*** Titled Tuesday Blitz"]
[Site "Chess.com"]
[Date "2019.05.07"]
[Round "10"]
[White "eldur16"]
[Black "Witik"]
[Result "0-1"]
[WhiteElo "2551"]
[BlackElo "2594"]
[TimeControl "180+2"]
[EndTime "15:24:40 PDT"]
[Termination "Witik won by resignation"]

1. d4 {[%clk 0:03:01.9]} 1... d5 {[%clk 0:02:58.7]} 2. c4 {[%clk 0:03:02.4]}
2... e6 {[%clk 0:02:59.7]} 3. Nc3 {[%clk 0:03:02.2]} 3... c6 {[%clk 0:02:56.6]}
4. e4 {[%clk 0:03:02.4]} 4... dxe4 {[%clk 0:02:55.8]} 5. Nxe4 {[%clk 0:03:02.8]}
5... Bb4+ {[%clk 0:02:56.6]} 6. Bd2 {[%clk 0:02:58]} 6... Qxd4 {[%clk 0:02:55]}
7. Bxb4 {[%clk 0:02:58.4]} 7... Qxe4+ {[%clk 0:02:56.2]} 8. Ne2 {[%clk 0:02:59]}
8... Nd7 {[%clk 0:02:32.3]} 9. Bd6 {[%clk 0:02:37.7]} 9... Ne7 {[%clk
0:02:02.8]} 10. Rc1 {[%clk 0:02:25.4]} 10... Nf5 {[%clk 0:01:54.6]} 11. Ba3
{[%clk 0:02:12.4]} 11... c5 {[%clk 0:01:53.2]} 12. Qd2 {[%clk 0:02:02.6]} 12...
b6 {[%clk 0:01:34.7]} 13. Rc3 {[%clk 0:01:51.5]} 13... Bb7 {[%clk 0:01:30.7]}
14. f3 {[%clk 0:01:51.2]} 14... Qh4+ {[%clk 0:01:23.8]} 15. g3 {[%clk
0:01:52.1]} 15... Qf6 {[%clk 0:01:15.5]} 16. Bg2 {[%clk 0:01:48.3]} 16... O-O-O
{[%clk 0:01:16.3]} 17. O-O {[%clk 0:01:46.2]} 17... Ne5 {[%clk 0:01:14.2]} 18.
Qc1 {[%clk 0:01:37.6]} 18... h5 {[%clk 0:01:04.2]} 19. b3 {[%clk 0:01:10.4]}
19... h4 {[%clk 0:01:03.2]} 20. Bb2 {[%clk 0:01:08]} 20... hxg3 {[%clk
0:01:03.9]} 21. hxg3 {[%clk 0:01:08.7]} 21... Qg6 {[%clk 0:00:44.1]} 22. f4
{[%clk 0:00:31.1]} 22... Ng4 {[%clk 0:00:40.5]} 23. Bxb7+ {[%clk 0:00:28.9]}
23... Kxb7 {[%clk 0:00:41.6]} 24. Qb1 {[%clk 0:00:25.1]} 24... Qh5 {[%clk
0:00:20.9]} 25. Qe4+ {[%clk 0:00:24.4]} 25... Kb8 {[%clk 0:00:18.3]} 26. Qg2
{[%clk 0:00:21.6]} 26... Rd2 {[%clk 0:00:17]} 27. Ba1 {[%clk 0:00:16.1]} 27...
f6 {[%clk 0:00:17]} 28. Rcf3 {[%clk 0:00:12.1]} 28... Nge3 {[%clk 0:00:16]} 29.
Rxe3 {[%clk 0:00:11]} 29... Nxe3 {[%clk 0:00:17.2]} 30. g4 {[%clk 0:00:12]}
30... Nxg2 {[%clk 0:00:17]} 31. gxh5 {[%clk 0:00:13]} 31... Rxe2 {[%clk
0:00:18.6]} 32. Bc3 {[%clk 0:00:13.1]} 32... Rxh5 {[%clk 0:00:19.1]} 33. Rf3
{[%clk 0:00:13.5]} 33... Ne3 {[%clk 0:00:18.8]} 34. Rg3 {[%clk 0:00:13.5]} 34...
Rhh2 {[%clk 0:00:17.4]} 35. Rxg7 {[%clk 0:00:08.7]} 35... Rhg2+ {[%clk
0:00:18.4]} 36. Rxg2 {[%clk 0:00:08.7]} 36... Rxg2+ {[%clk 0:00:20.3]} 37. Kh1
{[%clk 0:00:09.9]} 37... f5 {[%clk 0:00:20.9]} 0-1